bitfinex/quotes_SOLUSD_20260224
["timestamp","ask_amount","ask_price","bid_price","bid_amount"]
[1771919560105,1.37021814,76.884,76.852,13.0120231]
[1771919560106,1.37021814,76.884,76.861,1.40808066]
[1771919561825,1.37021814,76.884,76.84,5.21464866]
[1771919561826,1.37021814,76.869,76.831,1.40808066]
[1771919562012,1.37021814,76.859,76.831,1.40808066]
[1771919563216,1.37021814,76.859,76.823,13.01693503]
[1771919563217,1.37021814,76.859,76.824,1.40808066]
[1771919563832,1.37021814,76.857,76.824,1.40808066]
[1771919566412,0.28432314,76.876,76.818,1.40808066]
[1771919566413,1.37021814,76.849,76.818,1.40808066]
[1771919569737,1.44464249,76.847,76.82,1.39953657]
[1771919569914,5.21464866,76.84,76.813,1.39953657]
[1771919570242,1.44464249,76.839,76.813,1.39953657]
[1771919570840,1.44464249,76.829,76.795,13.02155675]
[1771919571013,1.44464249,76.829,76.796,1.39953657]
[1771919572132,13.01608788,76.828,76.797,13.02134197]
[1771919572312,1.44464249,76.827,76.798,1.39953657]
[1771919572515,1.44464249,76.819,76.792,13.02216482]
[1771919573220,1.44464249,76.819,76.792,14.42170139]
[1771919573643,1.44464249,76.819,76.793,1.39953657]
[1771919574532,1.44464249,76.819,76.795,1.39953657]
[1771919574729,1.44464249,76.825,76.795,1.39953657]
[1771919574933,1.44464249,76.819,76.795,1.39953657]
[1771919577209,13.01778229,76.818,76.795,1.39953657]
[1771919577415,1.44464249,76.819,76.797,1.39953657]
[1771919578018,13.01778229,76.818,76.797,1.39953657]
[1771919580433,14.46242478,76.818,76.797,1.39953657]
[1771919580819,1.44464249,76.817,76.797,1.39953657]
[1771919581022,1.44464249,76.817,76.799,1.39953657]
[1771919582039,14.46262908,76.817,76.799,1.39953657]
[1771919583624,1.44464249,76.816,76.799,1.39953657]
[1771919584515,1.44464249,76.814,76.794,1.39953657]
[1771919586142,1.44464249,76.814,76.789,1.39953657]
[1771919587946,5.21693095,76.8,76.759,0.14216157]
[1771919588133,1.44464249,76.799,76.769,1.39953657]
[1771919595445,0.5,76.814,76.781,1.39953657]
[1771919595647,5.21693095,76.81,76.781,1.39953657]
[1771919595847,6.66157344,76.81,76.781,1.39953657]
[1771919596153,1.44464249,76.809,76.781,1.39953657]
[1771919596351,5.21693095,76.8,76.781,1.39953657]
[1771919597032,1.44464249,76.802,76.781,1.39953657]
[1771919597433,1.44464249,76.802,76.782,1.39953657]
[1771919599746,13.0199227,76.806,76.784,1.38631629]
[1771919600152,1.50058501,76.805,76.784,1.38631629]
[1771919601045,14.51982452,76.81,76.784,1.38631629]
[1771919601354,1.50058501,76.809,76.784,1.38631629]
[1771919604247,1.40937863,76.807,76.784,1.38631629]
[1771919608359,1.40937863,76.835,76.801,1.46864734]
[1771919608668,1.40937863,76.829,76.801,1.46864734]
[1771919610164,1.40937863,76.827,76.796,1.46864734]
[1771919612937,1.40937863,76.827,76.801,1.46864734]
[1771919613138,1.40937863,76.825,76.801,1.46864734]
[1771919613543,5.21693095,76.84,76.801,1.46864734]
[1771919613544,1.40937863,76.832,76.801,1.46864734]
[1771919614158,1.40937863,76.829,76.801,1.46864734]
[1771919615453,14.42360317,76.839,76.811,1.46864734]
[1771919616582,1.40937863,76.838,76.811,1.46864734]
[1771919618668,1.40937863,76.836,76.813,1.46864734]
[1771919620871,1.40937863,76.834,76.801,1.46864734]
[1771919624573,1.40937863,76.832,76.801,1.46864734]
[1771919625467,1.40937863,76.832,76.803,1.46864734]
[1771919627979,0.5,76.839,76.805,1.40831969]
[1771919627980,1.44154309,76.83,76.805,1.40831969]
[1771919629077,0.5,76.839,76.811,1.40831969]
[1771919629271,1.94154309,76.839,76.811,1.40831969]
[1771919629478,1.44154309,76.838,76.811,1.40831969]
[1771919630480,1.44154309,76.837,76.812,1.40831969]
[1771919634080,1.44154309,76.837,76.782,65.11884172]
[1771919634081,5.21693095,76.83,76.788,1.40831969]
[1771919634266,1.44154309,76.829,76.791,1.40831969]
[1771919636081,1.44154309,76.827,76.793,1.40831969]
[1771919636387,1.44154309,76.819,76.785,1.40831969]
[1771919638488,1.44154309,76.817,76.785,1.40831969]
[1771919639691,13.01812122,76.816,76.785,1.40831969]
[1771919639880,1.44154309,76.815,76.785,1.40831969]
[1771919640587,32.54110536,76.826,76.787,1.40831969]
[1771919640800,1.44154309,76.824,76.791,1.40831969]
[1771919645180,3.69383402,76.833,76.781,1.40831969]
[1771919645181,1.44154309,76.819,76.781,1.40831969]
[1771919647282,1.44154309,76.817,76.783,1.40831969]
[1771919649306,1.44154309,76.815,76.785,1.40831969]
[1771919651599,1.44154309,76.815,76.786,13.02320735]
[1771919651900,1.44154309,76.813,76.787,1.40831969]
[1771919652987,1.44154309,76.813,76.791,1.40831969]
[1771919657799,1.44154309,76.811,76.791,1.40831969]
[1771919659207,1.46239772,76.819,76.793,1.46630888]
[1771919659804,13.01778229,76.818,76.793,1.46630888]
[1771919659991,1.46239772,76.817,76.793,1.46630888]
[1771919661504,1.46239772,76.809,76.771,1.46630888]
[1771919662305,1.46239772,76.807,76.773,1.46630888]
[1771919664116,1.46239772,76.807,76.781,1.36566921]
[1771919666316,14.50057735,76.806,76.781,1.36566921]
[1771919667613,1.48076119,76.812,76.781,1.36566921]
[1771919667798,1.48076119,76.812,76.76,5.21597202]
[1771919667799,1.48076119,76.839,76.801,1.36566921]
[1771919667998,1.48076119,76.838,76.801,1.36566921]
[1771919668343,1.48076119,76.835,76.801,1.36566921]
[1771919668496,32.53568289,76.839,76.801,1.36566921]
[1771919668497,1.48076119,76.833,76.801,1.36566921]
[1771919668897,3.69383402,76.843,76.8,18.23680163]
[1771919668898,13.01286972,76.847,76.821,1.36566921]
[1771919669501,1.48076119,76.851,76.821,1.36566921]
[1771919669708,13.01134589,76.856,76.831,1.36566921]
[1771919671518,14.49126066,76.861,76.831,1.36566921]
[1771919671722,1.48076119,76.86,76.831,1.36566921]
[1771919672115,1.48076119,76.86,76.833,1.36566921]
[1771919672709,1.48076119,76.865,76.841,1.36566921]
[1771919674828,1.48076119,76.863,76.835,1.36566921]
[1771919675005,1.48076119,76.859,76.83,6.58164123]
[1771919675204,1.48076119,76.859,76.831,1.36566921]
[1771919678008,1.48076119,76.857,76.831,1.36566921]
[1771919678409,1.48076119,76.857,76.811,1.36566921]
[1771919678613,1.48076119,76.855,76.821,1.36566921]
[1771919678926,1.48076119,76.849,76.811,1.36566921]
[1771919680325,1.48076119,76.847,76.811,1.36566921]
[1771919681428,1.48076119,76.847,76.81,5.21597202]
[1771919681627,1.48076119,76.844,76.806,1.36566921]
[1771919681829,1.48076119,76.839,76.801,1.36566921]
[1771919682033,1.48076119,76.836,76.801,1.36566921]
[1771919682517,1.48076119,76.834,76.801,1.36566921]
[1771919684537,1.48076119,76.829,76.796,1.36566921]
[1771919684923,13.01608788,76.828,76.796,1.36566921]
[1771919685234,1.48076119,76.827,76.796,1.36566921]
[1771919685411,1.48076119,76.827,76.801,1.36566921]
[1771919688210,1.39049599,76.825,76.801,1.36566921]
[1771919689615,1.39049599,76.823,76.801,1.36566921]
[1771919690024,1.39049599,76.835,76.803,1.36114863]
[1771919691419,5.21597202,76.82,76.785,1.36114863]
[1771919691730,1.39049599,76.818,76.787,1.36114863]
[1771919692718,1.39049599,76.818,76.79,5.21597202]
[1771919692919,1.39049599,76.818,76.791,1.36114863]
[1771919695235,1.39049599,76.816,76.791,1.36114863]
[1771919695536,1.39049599,76.816,76.781,1.36114863]
[1771919696834,1.39049599,76.814,76.781,1.36114863]
[1771919698230,1.39049599,76.83,76.801,1.36114863]
[1771919698422,1.39049599,76.828,76.801,1.36114863]
[1771919700234,45.55690056,76.827,76.801,1.36114863]
[1771919700443,1.39049599,76.826,76.801,1.36114863]
[1771919702440,1.39049599,76.824,76.801,1.36114863]
[1771919703816,5.21846418,76.81,76.783,1.36114863]
[1771919704136,1.39049599,76.809,76.783,1.36114863]
[1771919705229,13.01761283,76.819,76.791,1.36114863]
[1771919707227,13.01710447,76.822,76.791,1.36114863]
[1771919709229,13.51649566,76.826,76.801,1.36114863]
[1771919709426,13.01649566,76.826,76.801,1.36114863]
[1771919712552,14.40607563,76.831,76.803,1.36114863]
[1771919713430,1.39049599,76.83,76.803,1.36114863]
[1771919714652,13.01591846,76.829,76.803,1.36114863]
[1771919715357,1.39049599,76.835,76.805,1.36114863]
[1771919715561,13.01371645,76.842,76.811,1.36114863]
[1771919715847,13.01371645,76.842,76.821,1.36114863]
[1771919717856,1.39049599,76.844,76.821,1.36114863]
[1771919718856,13.01083802,76.859,76.831,1.37066625]
[1771919719156,1.39076334,76.858,76.831,1.37066625]
[1771919721348,14.40193994,76.857,76.831,1.37066625]
[1771919722749,13.0111766,76.857,76.831,1.37066625]
[1771919722949,1.39076334,76.856,76.831,1.37066625]
[1771919724349,13.01151519,76.855,76.831,1.37066625]
[1771919724856,1.40127886,76.854,76.831,1.37066625]
[1771919728380,13.01151519,76.855,76.832,1.36783684]
[1771919728662,1.40127886,76.877,76.851,1.36783684]
[1771919729668,13.00796087,76.876,76.86,6.58630102]
[1771919729843,13.00696448,76.882,76.87,5.21846418]
[1771919730049,0.2,76.89,76.871,1.36783684]
[1771919730245,0.2,76.89,76.881,1.36783684]
[1771919730550,1.40127886,76.899,76.881,1.36783684]
[1771919730748,1.40127886,76.905,76.89,4.14211013]
[1771919730949,0.2,76.91,76.891,1.36783684]
[1771919731155,0.2,76.91,76.88,5.21846418]
[1771919731156,0.2,76.91,76.9,6.17535338]
[1771919731846,0.2,76.91,76.9,5.83e-06]
[1771919732048,0.2,76.91,76.89,5.21846418]
[1771919733747,13.00271756,76.907,76.854,0.14216157]
[1771919733946,1.40127886,76.906,76.88,5.21846418]
[1771919734268,1.40127886,76.889,76.86,6.58630102]
[1771919734562,1.40127886,76.889,76.86,5.21846418]
[1771919735766,1.40127886,76.887,76.86,5.21846418]
[1771919736146,1.40127886,76.887,76.854,1.36783684]
[1771919736849,1.40127886,76.887,76.85,5.21846418]
[1771919737055,1.40127886,76.879,76.85,5.21846418]
[1771919737460,1.40127886,76.879,76.85,6.58630102]
[1771919737660,1.40127886,76.879,76.846,13.01298416]
[1771919737661,1.40127886,76.877,76.84,1.36783684]
[1771919737867,1.40127886,76.877,76.84,5.21846418]
[1771919738357,5.21846418,76.87,76.835,1.36783684]
[1771919738549,1.40127886,76.869,76.835,1.36783684]
[1771919739061,1.40127886,76.869,76.837,1.36783684]
[1771919739962,1.40127886,76.867,76.85,5.21846418]
[1771919740257,13.00931466,76.868,76.851,1.36783684]
[1771919740464,14.41059352,76.868,76.851,1.36783684]
[1771919741358,1.40127886,76.859,76.831,1.36783684]
[1771919742667,13.01100731,76.858,76.833,1.36783684]
[1771919742854,13.00931466,76.868,76.851,1.36783684]
[1771919743384,1.40127886,76.867,76.845,1.36783684]
[1771919745157,1.40127886,76.865,76.845,1.36783684]
[1771919747755,1.40127886,76.863,76.84,5.21846418]
[1771919748275,1.40127886,76.863,76.841,1.31864117]
[1771919748872,1.28857087,76.873,76.841,1.31864117]
[1771919750468,13.00829929,76.874,76.84,18.23245419]
[1771919750469,1.28857087,76.871,76.851,1.31864117]
[1771919754968,1.27000453,76.887,76.853,1.36458486]
[1771919755165,3.69383402,76.885,76.853,1.36458486]
[1771919755368,1.27000453,76.884,76.853,1.36458486]
[1771919756966,1.27000453,76.882,76.853,1.36458486]
[1771919758764,1.27000453,76.88,76.855,1.36458486]
[1771919760086,1.27000453,76.878,76.855,1.36458486]
[1771919760385,1.27000453,76.869,76.829,0.28432314]
[1771919760573,1.27000453,76.869,76.84,5.208572]
[1771919760889,1.27000453,76.869,76.841,1.36458486]
[1771919761371,3.69383402,76.886,76.851,1.36458486]
[1771919761567,13.00576155,76.889,76.851,1.36458486]
[1771919761774,13.00576155,76.889,76.861,1.36458486]
[1771919762279,13.00436752,76.898,76.871,1.36458486]
[1771919763375,1.27000453,76.897,76.871,1.36458486]
[1771919764667,1.27000453,76.895,76.871,1.36458486]
[1771919765271,13.00399773,76.9,76.881,1.36458486]
[1771919765482,14.27316709,76.905,76.881,1.36458486]
[1771919766199,1.27000453,76.904,76.881,1.36458486]
[1771919770389,1.27000453,76.904,76.883,1.36458486]
[1771919771879,13.00237943,76.909,76.883,1.36458486]
[1771919772173,14.27238396,76.909,76.883,1.36458486]
[1771919772373,0.2,76.91,76.891,1.36458486]
[1771919774778,0.2,76.91,76.901,1.36458486]
[1771919774979,0.2,76.93,76.902,1.36458486]
[1771919775192,0.2,76.93,76.911,1.36458486]
[1771919775385,0.2,76.94,76.921,1.36458486]
[1771919775691,0.2,76.94,76.92,5.208572]
[1771919775692,1.27000453,76.959,76.931,1.36458486]
[1771919775998,1.27000453,76.969,76.894,1.36458486]
[1771919776292,1.27000453,76.969,76.892,318.62872599]
[1771919776293,1.27000453,76.969,76.94,5.208572]
[1771919776689,1.27000453,76.969,76.94,6.57315686]
[1771919776891,1.27000453,76.979,76.951,1.36458486]
[1771919777080,1.27000453,76.979,76.941,12.9969717]
[1771919777081,1.27000453,76.979,76.954,1.36458486]
[1771919777279,1.27000453,76.979,76.948,1.36458486]
[1771919777481,1.27000453,76.979,76.951,1.36458486]
[1771919778795,1.20191153,76.977,76.945,14.31924201]
[1771919779092,1.20191153,76.977,76.946,1.32296746]
[1771919781294,1.20191153,76.975,76.946,1.32296746]
[1771919782385,0.2,76.98,76.951,1.32296746]
[1771919782887,12.99055586,76.979,76.951,1.32296746]
[1771919783091,1.20861933,76.969,76.93,5.208572]
[1771919783495,1.20861933,76.967,76.93,5.208572]
[1771919784103,1.20861933,76.967,76.931,12.99866113]
[1771919784686,1.20861933,76.967,76.931,45.49531397]
[1771919785190,1.20861933,76.967,76.932,1.22315218]
[1771919786704,0.61646755,76.967,76.934,1.22315218]
[1771919788300,0.61646755,76.967,76.941,1.22315218]
[1771919788916,0.61646755,76.967,76.943,1.22315218]
[1771919789908,1.20861933,76.976,76.943,1.22315218]
[1771919790109,1.20861933,76.976,76.951,1.22315218]
[1771919790487,1.20861933,76.975,76.951,1.22315218]
[1771919790897,1.20861933,76.975,76.943,1.22315218]
[1771919791213,1.20861933,76.973,76.944,1.22315218]
[1771919794019,1.20861933,76.973,76.945,12.99629605]
[1771919794323,1.20861933,76.973,76.946,1.22315218]
[1771919796519,1.20861933,76.972,76.948,1.22315218]
[1771919798522,0.5,76.978,76.861,102.62287586]
[1771919798523,5.208572,76.97,76.861,102.62287586]
[1771919798814,1.20861933,76.959,76.921,1.22315218]
[1771919799121,1.20861933,76.959,76.931,1.22315218]
[1771919799914,1.20861933,76.959,76.941,1.22315218]
[1771919800297,1.20861933,76.969,76.941,1.22315218]
[1771919800998,1.20861933,76.967,76.941,1.22315218]
[1771919803214,12.99275004,76.966,76.941,1.22315218]
[1771919803913,1.20861933,76.965,76.941,1.22315218]
[1771919804120,12.99275004,76.966,76.931,1.22315218]
[1771919804121,1.20861933,76.959,76.931,1.22315218]
[1771919805222,1.20861933,76.959,76.941,1.22315218]
[1771919805417,1.20861933,76.965,76.941,1.22315218]
[1771919806918,12.99308767,76.964,76.941,1.22315218]
[1771919807931,1.20255858,76.978,76.951,1.24232612]
[1771919810104,0.2,76.98,76.937,1.24232612]
[1771919810105,1.20255858,76.969,76.937,1.24232612]
[1771919810316,1.20255858,76.969,76.94,1.24232612]
[1771919810525,1.20255858,76.969,76.941,1.24232612]
[1771919812202,0.2,76.964,76.961,1.24232612]
[1771919812412,12.99055586,76.979,76.961,1.24232612]
[1771919812610,14.19311444,76.979,76.961,1.24232612]
[1771919812913,1.20255858,76.978,76.961,1.24232612]
[1771919813313,1.20255858,76.978,76.961,1.04232612]
[1771919814204,12.99089338,76.977,76.961,0.84232612]
[1771919814539,1.20255858,76.976,76.941,45.48940096]
[1771919816311,1.20255858,76.974,76.944,1.24232612]
[1771919817037,1.20255858,76.974,76.95,5.208572]
[1771919817217,1.20255858,76.974,76.951,1.24232612]
[1771919817829,1.20255858,76.972,76.94,1.24232612]
[1771919818929,1.20255858,76.972,76.941,1.24232612]
[1771919819234,1.20255858,76.972,76.942,14.2391289]
[1771919819717,1.20255858,76.972,76.943,1.24232612]
[1771919820429,1.20255858,76.969,76.938,1.24232612]
[1771919820633,1.20255858,76.969,76.938,12.99746314]
[1771919820841,1.20255858,76.969,76.939,1.24232612]
[1771919821239,1.20255858,76.969,76.94,18.19335951]
[1771919821539,1.20255858,76.967,76.938,12.99738132]
[1771919821738,1.20255858,76.967,76.939,1.24232612]
[1771919822710,1.20255858,76.959,76.922,1.24232612]
[1771919823838,1.20255858,76.957,76.931,1.24232612]
[1771919824139,1.20255858,76.957,76.92,5.19621889]
[1771919824309,1.20255858,76.957,76.921,1.24232612]
[1771919825520,1.20255858,76.955,76.921,1.24232612]
[1771919825834,1.20255858,76.949,76.921,1.24232612]
[1771919828934,12.99578936,76.948,76.921,1.24232612]
[1771919829231,1.20255858,76.947,76.921,1.24232612]
[1771919829433,1.20255858,76.939,76.91,1.24232612]
[1771919829634,1.20255858,76.939,76.911,1.24232612]
[1771919831242,1.20255858,76.937,76.913,1.24232612]
[1771919833428,1.20255858,76.935,76.904,1.24232612]
[1771919834022,1.20255858,76.935,76.91,5.19621889]
[1771919834222,1.20255858,76.935,76.911,1.24232612]
[1771919834760,1.20255858,76.946,76.92,5.19621889]
[1771919834921,1.20255858,76.946,76.921,1.24232612]
[1771919835430,1.20255858,76.946,76.923,1.24232612]
[1771919837825,1.20255858,76.946,76.923,0.31694323]
[1771919838325,1.25134046,76.944,76.923,0.31694323]
[1771919838641,1.25134046,76.939,76.9,5.19621889]
[1771919839726,1.25134046,76.937,76.903,0.7348073]
[1771919840746,1.25134046,76.937,76.911,0.73547586]
[1771919841946,1.25134046,76.937,76.912,13.00187226]
[1771919842127,1.25134046,76.937,76.913,0.73615629]
[1771919842322,0.5,76.944,76.925,0.73680995]
[1771919842646,2.47215037,96.317,76.941,1.24560296]
[1771919842647,5.39621889,76.98,76.941,1.24560296]
[1771919842833,5.39621889,76.98,76.95,5.19621889]
[1771919843652,45.46694552,76.979,76.95,5.19621889]
[1771919843834,45.46694552,76.979,76.949,1.24560296]
[1771919844551,1.2344694,76.975,76.941,1.2415497]
[1771919844750,1.2344694,76.969,76.933,1.2415497]
[1771919846227,1.2344694,76.967,76.933,1.2415497]
[1771919847361,1.2344694,76.959,76.922,14.24159996]
[1771919847657,1.2344694,76.959,76.923,1.2415497]
[1771919850955,1.2344694,76.957,76.93,6.43776859]
[1771919851148,1.2344694,76.957,76.931,1.2415497]
[1771919853657,1.2344694,76.957,76.941,1.2415497]
[1771919864167,1.2344694,76.957,76.936,1.2415497]
[1771919864966,1.2344694,76.957,76.941,1.2415497]
[1771919876786,1.2344694,76.957,76.807,12.99767297]
[1771919876787,1.31540798,76.949,76.921,1.22644295]
[1771919876974,1.31540798,76.949,76.91,5.19621889]
[1771919878884,1.31540798,76.947,76.913,0.81285197]
[1771919881288,1.31540798,76.945,76.915,0.81859919]
[1771919882581,1.31540798,76.939,76.902,13.00352707]
[1771919882767,1.31540798,76.929,76.896,0.82046449]
[1771919883479,12.99916805,76.928,76.896,0.82046449]
[1771919883694,1.31540798,76.927,76.896,0.82046449]
[1771919884485,1.31540798,76.931,76.911,0.82416145]
[1771919885680,1.31540798,76.931,76.913,0.82598432]
[1771919887192,1.35231829,76.929,76.902,13.00340151]
[1771919887693,1.35231829,76.927,76.902,13.00340151]
[1771919887890,1.35231829,76.927,76.89,5.19989416]
[1771919890195,1.35231829,76.925,76.891,13.00542326]
[1771919891804,1.35231829,76.919,76.883,13.00675013]
[1771919892167,1.35231829,76.917,76.883,13.00675013]
[1771919892387,1.35231829,76.917,76.89,5.19989416]
[1771919896003,5.19989416,76.93,76.856,3.69383402]
[1771919896004,1.35231829,76.935,76.9,5.19989416]
[1771919896675,1.35231829,76.935,76.91,5.19989416]
[1771919896877,1.35231829,76.945,76.92,5.19989416]
[1771919897985,1.35231829,76.945,76.921,0.02136115]
[1771919905198,1.35231829,76.945,76.922,0.03326877]
[1771919906100,12.99564039,76.949,76.922,0.03326877]
[1771919906502,1.35231829,76.949,76.922,0.03326877]
[1771919910202,12.99578936,76.948,76.93,5.19989416]
[1771919910504,1.35231829,76.948,76.931,0.03938103]
[1771919912109,1.35231829,76.948,76.93,5.19989416]
[1771919913812,1.35231829,76.946,76.926,0.04055782]
[1771919915011,1.35231829,76.946,76.921,13.000351]
[1771919915212,1.35231829,76.939,76.902,0.04516206]
[1771919915392,1.35231829,76.939,76.901,0.04516206]
[1771919916292,1.35231829,76.939,76.902,0.04626533]
[1771919919935,1.35231829,76.937,76.91,5.24943174]
[1771919920213,1.35231829,76.937,76.91,5.19989416]
[1771919920797,1.35231829,76.937,76.901,0.05060587]
[1771919923926,1.35231829,76.953,76.901,45.51306224]
[1771919924128,1.35231829,76.953,76.92,5.19989416]
[1771919924418,1.35231829,76.949,76.915,0.05372537]
[1771919924622,1.35231829,76.949,76.91,5.19989416]
[1771919924916,1.35231829,76.939,76.91,5.19989416]
[1771919925124,1.35231829,76.939,76.911,0.05473564]
[1771919927518,1.35231829,76.937,76.902,0.05773216]
[1771919928406,1.35231829,76.935,76.902,0.05773216]
[1771919929222,5.19989416,76.93,76.902,0.05773216]
[1771919929403,1.35231829,76.929,76.902,0.05773216]
[1771919929824,1.35231829,76.929,76.901,13.00373207]
[1771919932815,1.35231829,76.929,76.901,0.0634203]
[1771919933418,1.35231829,76.929,76.893,0.06433722]
[1771919940404,1.35231829,76.927,76.893,0.06433722]
[1771919940811,1.35231829,76.927,76.891,13.00542326]
[1771919941031,12.99916805,76.928,76.884,13.00660735]
[1771919941032,1.35231829,76.909,76.884,13.00660735]
[1771919942029,1.35231829,76.909,76.88,0.07128127]
[1771919944148,5.20466557,76.92,76.881,0.07293036]
[1771919944431,1.35231829,76.919,76.881,0.07293036]
[1771919946522,1.35231829,76.919,76.882,0.07532134]
[1771919950121,1.35231829,76.917,76.882,0.07532134]
[1771919955332,1.35231829,76.909,76.882,0.07532134]
[1771919962543,3.69383402,76.939,76.882,0.28432314]
[1771919962741,1.35231829,76.929,76.891,0.07025721]
[1771919963245,5.20466557,76.92,76.891,0.07025721]
[1771919963449,1.35231829,76.919,76.891,0.07025721]
[1771919964030,1.35231829,76.919,76.892,0.06988833]
[1771919972059,1.35231829,76.919,76.891,45.51898141]
[1771919972366,1.35231829,76.919,76.891,45.58575282]
[1771919972542,1.35231829,76.919,76.892,0.06677141]
[1771919973056,1.35231829,76.927,76.9,5.20466557]
[1771919973276,1.35231829,76.927,76.901,0.06677141]
[1771919973943,32.49336577,76.939,76.911,13.00204132]
[1771919973944,1.35231829,76.939,76.911,13.00204132]
[1771919974152,1.35231829,76.939,76.912,0.06644284]
[1771919974756,12.99747848,76.938,76.912,0.06644284]
[1771919974959,1.35231829,76.937,76.912,0.06644284]
[1771919980272,1.33231829,76.937,76.912,0.08421051]
[1771919982766,145.5050384,77.16,76.931,0.08362187]
[1771919982767,1.35216966,76.955,76.931,0.08362187]
[1771919983742,1.35216966,76.955,76.932,0.08332096]
[1771919985646,1.35216966,76.949,76.923,12.99991233]
[1771919985950,1.35216966,76.947,76.916,0.0827506]
[1771919988064,1.34231829,76.945,76.916,0.0827506]
[1771919992857,1.34231829,76.943,76.916,0.0827506]
[1771919994653,1.34231829,76.943,76.92,5.20466557]
[1771919994850,1.34231829,76.943,76.921,0.08017205]
[1771919995052,1.34231829,76.947,76.922,0.08017205]
[1771919995269,1.34231829,76.951,76.931,0.07993364]
[1771919995687,1.34231829,76.957,76.931,0.07993364]
[1771919996572,1.34231829,76.969,76.942,0.07968334]
[1771919996958,1.34231829,76.969,76.942,13.07648612]
[1771919997170,1.34231829,76.969,76.943,0.07968334]
[1771919999281,5.40466557,76.98,76.938,12.99741553]
[1771919999282,1.34231829,76.959,76.938,12.99741553]
[1771919999488,1.34231829,76.949,76.925,0.07897787]
[1771920000080,1.34231829,76.955,76.925,0.07897787]
[1771920001187,6.54698386,76.96,76.925,0.07897787]
[1771920001377,1.34231829,76.96,76.932,0.07850429]
[1771920001591,1.34231829,76.959,76.932,0.07850429]
[1771920002656,1.34231829,76.959,76.932,45.4947226]
[1771920002861,1.34231829,76.959,76.932,45.57298884]
[1771920003364,1.34231829,76.959,76.933,0.07804449]
[1771920003565,1.34231829,76.959,76.932,12.99849217]
[1771920003780,1.34231829,76.949,76.932,12.99849217]
[1771920003972,1.34231829,76.939,76.923,13.000013]
[1771920004268,1.34231829,76.939,76.923,13.07783692]
[1771920004473,1.34231829,76.939,76.908,45.58674365]
[1771920004766,1.34231829,76.939,76.909,0.07782392]
[1771920005189,1.34231829,76.939,76.912,0.07782392]
[1771920005483,1.34231829,76.929,76.91,13.00221037]
[1771920007090,1.34231829,76.919,76.881,0.28432314]
[1771920007391,1.34231829,76.919,76.888,0.07739664]
[1771920008288,6.53982606,76.93,76.892,0.07698094]
[1771920008465,1.34231829,76.929,76.892,0.07698094]
[1771920009490,1.34231829,76.919,76.892,0.07698094]
[1771920009875,1.34231829,76.929,76.892,0.07698094]
[1771920010788,1.34231829,76.929,76.892,45.59537036]
[1771920011292,5.19750777,76.92,76.893,0.07488147]
[1771920011489,6.53982606,76.92,76.893,0.07488147]
[1771920011799,1.34231829,76.909,76.892,13.00525412]
[1771920012407,3.69383402,76.939,76.893,1.3726596]
[1771920012595,5.19750777,76.93,76.893,1.3726596]
[1771920014485,1.30633036,76.929,76.894,45.51720549]
[1771920014693,1.30633036,76.929,76.895,1.3726596]
[1771920015499,1.30633036,76.929,76.896,13.00457761]
[1771920015797,1.30633036,76.929,76.897,1.3726596]
[1771920016898,12.99916805,76.928,76.897,1.3726596]
[1771920017201,1.30633036,76.927,76.897,1.3726596]
[1771920017400,1.30633036,76.919,76.896,13.00457761]
[1771920018018,1.30916223,76.926,76.895,1.3726596]
[1771920020604,1.30916223,76.926,76.896,45.51602163]
[1771920020792,1.30916223,76.926,76.897,1.33673852]
[1771920021390,1.30916223,76.949,76.909,1.33673852]
[1771920021693,1.30916223,76.949,76.911,1.33673852]
[1771920023523,1.30916223,76.949,76.913,1.33673852]
[1771920025817,1.33285424,76.947,76.915,1.31710279]
[1771920027908,1.33285424,76.945,76.917,1.31710279]
[1771920030723,1.33285424,76.958,76.921,1.31710279]
[1771920031218,1.33285424,76.958,76.931,1.60142593]
[1771920031419,1.33285424,76.958,76.919,0.28432314]
[1771920031420,1.33285424,76.949,76.919,0.28432314]
[1771920031717,5.19750777,76.94,76.918,13.00085805]
[1771920031934,1.33285424,76.929,76.891,0.14216157]
[1771920032103,1.33285424,76.929,76.891,0.28432314]
[1771920032417,1.33285424,76.929,76.901,0.28432314]
[1771920033011,1.33285424,76.929,76.901,45.65522381]
[1771920033403,1.33285424,76.929,76.902,0.10037315]
[1771920035622,1.33285424,76.929,76.901,13.00373207]
[1771920035921,1.33285424,76.927,76.901,13.00373207]
[1771920036910,1.33285424,76.927,76.902,0.10331273]
[1771920037406,1.33285424,76.919,76.881,0.28432314]
[1771920037609,1.33285424,76.909,76.881,0.10426389]
[1771920038621,1.33285424,76.909,76.881,0.28432314]
[1771920038829,1.33285424,76.909,76.882,0.10523967]
[1771920041427,1.33285424,76.909,76.883,0.1080625]
[1771920045231,13.00101346,76.918,76.883,0.1080625]
[1771920045426,1.33285424,76.917,76.883,0.1080625]
[1771920046632,1.33285424,76.915,76.883,0.1080625]
[1771920047024,1.33285424,76.909,76.883,0.1080625]
[1771920048619,1.32971054,76.907,76.883,0.1080625]
[1771920050133,1.32971054,76.905,76.871,45.53082436]
[1771920050342,1.32971054,76.899,76.871,45.53082436]
[1771920050636,1.32971054,76.899,76.872,0.11673735]
[1771920051942,1.32971054,76.904,76.872,0.11673735]